bitfinex-derivatives/quotes_SOLF0:USTF0_20260127
["timestamp","ask_amount","ask_price","bid_price","bid_amount"]
[1769537896104,20.62582329,124.69,124.62,12.64040941]
[1769537896305,20.62582329,124.69,124.63,1.68475764]
[1769537896505,13.39812329,124.69,124.63,14.32516705]
[1769537897311,13.39812329,124.69,124.63,21.55606705]
[1769537898212,13.39812329,124.69,124.6,112.5071]
[1769537898213,20.62502329,124.71,124.65,14.32516705]
[1769537898706,20.62502329,124.71,124.65,12.64040941]
[1769537898907,13.39812329,124.71,124.65,21.55496705]
[1769537899107,13.39812329,124.73,124.66,12.64040941]
[1769537899307,13.39812329,124.73,124.67,12.64040941]
[1769537900108,20.62342329,124.73,124.67,19.86910941]
[1769537901110,20.62342329,124.73,124.67,21.55386705]
[1769537901611,13.39812329,124.73,124.67,21.55386705]
[1769537902517,13.39812329,124.76,124.69,14.32516705]
[1769537902715,13.39812329,124.78,124.71,14.32516705]
[1769537903014,15.08288093,124.78,124.71,14.32516705]
[1769537903403,19.80720713,124.76,124.7,1.68475764]
[1769537903710,19.80720713,124.76,124.69,14.21878142]
[1769537904113,12.58360713,124.76,124.7,8.91155764]
[1769537904318,12.58360713,124.76,124.7,21.44558142]
[1769537904510,15.42180709,124.78,124.71,12.55862291]
[1769537906116,20.96004945,124.77,124.71,12.55862291]
[1769537906715,13.73704945,124.77,124.71,19.78502291]
[1769537907013,13.73704945,124.77,124.71,12.55862291]
[1769537907913,13.73704945,124.76,124.71,12.55862291]
[1769537908117,13.73704945,124.74,124.67,14.24338055]
[1769537908318,1.68475764,124.75,124.68,14.24338055]
[1769537908623,15.42180709,124.75,124.68,14.24338055]
[1769537908916,13.73704945,124.75,124.69,1.68475764]
[1769537909321,15.42180709,124.73,124.66,21.47238055]
[1769537909912,15.42180709,124.72,124.64,21.47328055]
[1769537910111,15.42180709,124.71,124.64,21.47328055]
[1769537910319,22.64830709,124.71,124.64,21.47328055]
[1769537910615,15.42180709,124.71,124.64,12.55862291]
[1769537910922,1.68475764,124.69,124.64,12.55862291]
[1769537911817,1.68475764,124.71,124.64,12.55862291]
[1769537912019,8.91105764,124.72,124.65,14.24338055]
[1769537912521,22.64810709,124.72,124.65,14.24338055]
[1769537912722,1.68475764,124.7,124.65,12.55862291]
[1769537913021,1.68475764,124.7,124.63,21.47388055]
[1769537913412,1.68475764,124.7,124.63,19.78912291]
[1769537913921,8.91185764,124.7,124.63,19.78912291]
[1769537914118,22.64890709,124.7,124.63,19.78912291]
[1769537914317,22.64890709,124.7,124.64,12.55862291]
[1769537914522,15.42180709,124.7,124.64,19.78902291]
[1769537915021,22.64890709,124.7,124.64,12.55862291]
[1769537915315,15.42180709,124.7,124.64,12.55862291]
[1769537915716,13.73704945,124.75,124.66,14.24338055]
[1769537915914,1.68475764,124.71,124.64,12.55862291]
[1769537916222,15.42180709,124.72,124.64,14.24338055]
[1769537916417,15.42180709,124.72,124.65,12.55862291]
[1769537917121,22.64770709,124.72,124.65,19.78842291]
[1769537918522,22.64770709,124.72,124.65,21.47318055]
[1769537919816,22.64770709,124.72,124.65,19.78842291]
[1769537922625,8.91065764,124.72,124.67,12.55862291]
[1769537922816,15.42180709,124.75,124.67,14.24338055]
[1769537923016,286.3316,124.8,124.7,12.55862291]
[1769537923017,13.73704945,124.77,124.7,12.55862291]
[1769537923222,22.64480709,124.77,124.7,21.47028055]
[1769537923723,1.68475764,124.75,124.7,12.55862291]
[1769537924325,22.64540709,124.76,124.7,12.55862291]
[1769537924826,20.96134945,124.75,124.68,14.24338055]
[1769537925421,8.90945764,124.74,124.68,12.55862291]
[1769537925625,15.42180709,124.73,124.66,14.24338055]
[1769537925827,1.68475764,124.72,124.66,12.55862291]
[1769537926025,1.68475764,124.72,124.66,19.78792291]
[1769537926421,1.68475764,124.72,124.66,12.55862291]
[1769537928132,8.91065764,124.72,124.66,12.55862291]
[1769537928323,1.68475764,124.71,124.66,12.55862291]
[1769537928632,1.68475764,124.71,124.64,12.55862291]
[1769537928824,8.91135764,124.71,124.64,12.55862291]
[1769537929129,1.68475764,124.7,124.64,12.55862291]
[1769537929428,1.68475764,124.69,124.64,12.55862291]
[1769537929626,1.68475764,124.67,124.62,12.55862291]
[1769537930126,1.68475764,124.67,124.6,291.15862291]
[1769537931030,1.68475764,124.67,124.61,7.2322]
[1769537931728,20.96524945,124.68,124.62,7.2316]
[1769537931933,22.65000709,124.68,124.62,7.2316]
[1769537934333,1.68475764,124.67,124.62,7.2316]
[1769537935527,8.91355764,124.67,124.61,12.55862291]
[1769537935734,1.68475764,124.66,124.61,12.55862291]
[1769537937233,1.68475764,124.67,124.61,19.79072291]
[1769537937430,1.68475764,124.67,124.62,13.06600025]
[1769537937931,15.42180709,124.68,124.62,13.06600025]
[1769537939134,22.65000709,124.68,124.62,13.06600025]
[1769537939830,15.42180709,124.68,124.62,20.29750025]
[1769537940034,13.73704945,124.68,124.62,20.29750025]
[1769537940236,15.44651003,124.7,124.63,13.06600025]
[1769537940537,1.68475764,124.68,124.63,13.06600025]
[1769537942934,1.68475764,124.68,124.63,20.29690025]
[1769537943339,22.67411003,124.69,124.63,20.29690025]
[1769537944436,1.68475764,124.68,124.63,20.29690025]
[1769537944633,1.68475764,124.67,124.61,13.06600025]
[1769537944829,1.68475764,124.66,124.61,13.06600025]
[1769537945029,1.68475764,124.64,124.59,13.06600025]
[1769537945741,1.68475764,124.64,124.59,20.29890025]
[1769537946637,1.68475764,124.63,124.57,20.30010025]
[1769537946934,1.68475764,124.62,124.57,13.06600025]
[1769537947743,1.68475764,124.63,124.58,13.06600025]
[1769537953143,22.67711003,124.64,124.58,13.06600025]
[1769537953542,15.44679229,124.66,124.59,13.06600025]
[1769537954443,1.6850399,124.65,124.59,13.06600025]
[1769537955044,8.9150399,124.65,124.59,13.06600025]
[1769537955750,1.6850399,124.65,124.6,13.06600025]
[1769537955947,15.44679229,124.68,124.6,14.75104015]
[1769537956949,20.99055239,124.67,124.61,7.2322]
[1769537958044,20.99055239,124.67,124.61,20.29820025]
[1769537958338,22.67559229,124.67,124.61,20.29820025]
[1769537960352,20.99055239,124.67,124.61,20.29820025]
[1769537960548,13.76175239,124.67,124.62,13.06600025]
[1769537961147,13.76175239,124.65,124.6,7.2328]
[1769537961347,13.76175239,124.65,124.58,14.75104015]
[1769537961548,1.6850399,124.66,124.6,13.06600025]
[1769537961744,13.76175239,124.67,124.6,13.06600025]
[1769537962047,15.44679229,124.66,124.58,14.75104015]
[1769537963051,7.2306,124.64,124.58,21.98474015]
[1769537963251,7.2306,124.64,124.59,13.73977289]
[1769537965151,1.6850399,124.61,124.53,13.51428418]
[1769537965452,1.6850399,124.61,124.53,15.19932408]
[1769537965453,13.67011063,124.6,124.53,15.19932408]
[1769537965947,13.67011063,124.6,124.54,15.19932408]
[1769537966143,1.6850399,124.61,124.54,15.19932408]
[1769537966350,15.35515053,124.62,124.55,7.2357]
[1769537966550,15.35515053,124.62,124.55,20.74998418]
[1769537966954,1.6850399,124.63,124.56,13.51428418]
[1769537967655,1.6850399,124.63,124.56,15.19932408]
[1769537967856,15.35515053,124.64,124.57,22.43382408]
[1769537968554,7.2311,124.63,124.57,22.43382408]
[1769537969157,15.35515053,124.64,124.57,22.43382408]
[1769537970958,22.58565053,124.64,124.57,22.43382408]
[1769537971456,22.58565053,124.64,124.57,20.74878418]
[1769537972658,22.58565053,124.64,124.58,13.51428418]
[1769537972852,7.2313,124.63,124.58,13.51428418]
[1769537973057,7.2313,124.63,124.54,112.5605]
[1769537973058,15.35515053,124.62,124.55,20.74948418]
[1769537973263,1.6850399,124.61,124.55,20.74948418]
[1769537974251,22.58735053,124.62,124.55,20.74948418]
[1769537974457,22.58735053,124.62,124.55,22.43452408]
[1769537976062,22.58735053,124.62,124.56,7.2351]
[1769537976259,7.2311,124.63,124.57,13.51428418]
[1769537976855,7.2311,124.63,124.57,20.74868418]
[1769537977056,7.2311,124.63,124.58,13.51428418]
[1769537978059,20.90121063,124.63,124.57,7.2344]
[1769537978254,22.58625053,124.63,124.57,7.2344]
[1769537979362,7.2317,124.62,124.56,20.74938418]
[1769537980265,7.2317,124.62,124.57,13.51428418]
[1769537981267,22.58625053,124.63,124.57,20.74878418]
[1769537983961,20.90121063,124.63,124.57,20.74878418]
[1769537984165,20.90121063,124.63,124.58,13.51428418]
[1769537984166,22.58625053,124.63,124.58,13.51428418]
[1769537986370,22.58625053,124.63,124.57,20.74878418]
[1769537986570,15.35515053,124.63,124.58,7.2339]
[1769537986873,13.67011063,124.63,124.58,7.2339]
[1769537989377,20.90121063,124.63,124.57,20.74878418]
[1769537992385,1.6850399,124.64,124.59,13.51428418]
[1769537992583,20.90031063,124.65,124.59,13.51428418]
[1769537993187,7.2306,124.64,124.59,20.74758418]
[1769537993989,7.2306,124.64,124.59,13.51428418]
[1769537994385,7.2311,124.63,124.57,13.50195243]
[1769537994588,7.2311,124.63,124.57,22.42109233]
[1769537994790,7.2311,124.63,124.57,15.18699233]
[1769537995992,7.2311,124.63,124.58,20.73595243]
[1769537999090,7.2311,124.63,124.58,13.50195243]
[1769538000191,8.9150399,124.65,124.59,20.73525243]
[1769538000395,15.2145487,124.65,124.59,13.50195243]
[1769538000588,13.5295088,124.64,124.57,1.6850399]
[1769538000792,13.5295088,124.62,124.55,13.50195243]
[1769538001390,13.5295088,124.58,124.52,13.50195243]
[1769538001586,13.5295088,124.58,124.51,1.6850399]
[1769538001989,13.5295088,124.58,124.51,15.18699233]
[1769538002986,7.2348,124.57,124.51,15.18699233]
[1769538003388,7.2337,124.59,124.53,13.50195243]
[1769538003693,112.4954,124.62,124.51,15.18699233]
[1769538003694,13.5295088,124.57,124.51,15.18699233]
[1769538004690,13.5295088,124.56,124.49,20.74085243]
[1769538004896,13.5295088,124.56,124.49,22.42589233]
[1769538005091,13.5295088,124.56,124.46,227.64]
[1769538005092,15.2145487,124.56,124.48,1.6850399]
[1769538005295,15.2145487,124.54,124.47,13.50195243]
[1769538005497,15.2145487,124.53,124.47,13.50195243]
[1769538006093,13.5295088,124.53,124.47,15.18699233]
[1769538006298,15.2145487,124.56,124.47,15.18699233]
[1769538006695,15.2145487,124.56,124.48,1.6850399]
[1769538006902,15.2145487,124.56,124.48,22.42669233]
[1769538007094,15.2145487,124.56,124.49,13.50195243]
[1769538007697,20.7653088,124.55,124.49,13.50195243]
[1769538008096,22.4503487,124.55,124.49,13.50195243]
[1769538008297,20.7659088,124.54,124.47,15.18699233]
[1769538008496,22.4509487,124.54,124.47,15.18699233]
[1769538009598,20.7666088,124.53,124.47,13.50195243]
[1769538009902,15.2145487,124.51,124.45,13.50195243]
[1769538010502,15.2145487,124.5,124.43,13.50195243]
[1769538010700,22.4532487,124.5,124.43,13.50195243]
[1769538011106,22.4532487,124.5,124.43,15.18699233]
[1769538011307,13.5295088,124.5,124.43,15.18699233]
[1769538011606,13.5295088,124.5,124.44,15.18699233]
[1769538012205,22.4524487,124.52,124.45,13.50195243]
[1769538012599,13.5295088,124.51,124.43,15.18699233]
[1769538012804,15.2145487,124.5,124.43,15.18699233]
[1769538013102,13.5295088,124.49,124.43,15.18699233]
[1769538013307,13.5295088,124.49,124.43,13.50195243]
[1769538013308,15.2145487,124.49,124.43,13.50195243]
[1769538013708,22.4538487,124.49,124.43,13.50195243]
[1769538014006,20.7688088,124.49,124.43,13.50195243]
[1769538014210,22.4538487,124.49,124.43,13.50195243]
[1769538014514,15.2145487,124.48,124.41,22.43069233]
[1769538015212,15.2145487,124.48,124.42,20.74515243]
[1769538015412,13.5295088,124.48,124.42,20.74515243]
[1769538016311,22.45781997,124.5,124.44,13.50195243]
[1769538017203,22.45691997,124.52,124.45,13.50195243]
[1769538017404,15.21911997,124.51,124.45,13.50195243]
[1769538018915,22.45731997,124.51,124.45,13.50195243]
[1769538019610,15.21911997,124.51,124.45,13.50195243]
[1769538019818,22.45641997,124.53,124.46,15.1915636]
[1769538020010,15.21911997,124.52,124.46,13.50195243]
[1769538020312,13.5295088,124.52,124.45,22.4328636]
[1769538020908,20.7670088,124.52,124.45,22.4328636]
[1769538022322,20.7670088,124.52,124.46,1.68961117]
[1769538022512,13.5295088,124.52,124.46,22.4324636]
[1769538023319,15.34630543,124.51,124.44,1.68961117]
[1769538023820,15.34630543,124.51,124.44,15.17611694]
[1769538024019,20.89539426,124.5,124.44,22.41821694]
[1769538024316,112.5699,124.54,124.41,112.6796]
[1769538024317,15.34630543,124.49,124.41,15.17611694]
[1769538024717,13.13167235,124.47,124.41,15.17611694]
[1769538024912,14.82128352,124.47,124.39,14.5206055]
[1769538025112,14.82128352,124.46,124.39,14.5206055]
[1769538025313,13.13167235,124.46,124.39,14.5206055]
[1769538025719,20.37277235,124.46,124.39,21.7656055]
[1769538026220,20.37277235,124.46,124.4,1.68961117]
[1769538026917,13.13167235,124.46,124.4,21.7650055]
[1769538027109,13.13167235,124.47,124.41,14.5206055]
[1769538027618,13.13167235,124.47,124.41,12.83099433]
[1769538028023,13.13167235,124.47,124.41,20.07479433]
[1769538028322,13.13167235,124.47,124.41,21.7644055]
[1769538029419,13.13167235,124.49,124.42,21.7638055]
[1769538029624,13.13167235,124.49,124.44,1.68961117]
[1769538030124,13.13167235,124.49,124.43,14.5206055]
[1769538030324,13.13167235,124.49,124.43,12.83099433]
[1769538032023,20.37087235,124.49,124.43,12.83099433]
[1769538032221,1.68961117,124.51,124.44,1.68961117]
[1769538032421,13.13167235,124.51,124.45,1.68961117]
[1769538032819,13.13167235,124.51,124.46,1.68961117]
[1769538033018,13.13167235,124.51,124.44,12.83099433]
[1769538033019,13.13167235,124.51,124.45,1.68961117]
[1769538034025,20.36897235,124.53,124.48,1.68961117]
[1769538034819,13.13167235,124.53,124.48,1.68961117]
[1769538035324,13.13167235,124.55,124.49,21.7596055]
[1769538035523,13.13167235,124.55,124.5,1.68961117]
[1769538035720,13.13167235,124.55,124.46,112.6336]
[1769538035721,13.13167235,124.58,124.53,1.68961117]
[1769538036324,13.13167235,124.58,124.54,1.68961117]
[1769538036528,20.36487235,124.6,124.54,1.68961117]
[1769538036726,13.13167235,124.59,124.54,1.68961117]
[1769538036927,13.13167235,124.59,124.53,1.68961117]
[1769538037228,13.13167235,124.59,124.54,1.68961117]
[1769538037528,13.13167235,124.63,124.55,12.83099433]
[1769538037723,13.13167235,124.61,124.52,12.83099433]
[1769538038130,20.36417235,124.61,124.53,20.06769433]
[1769538039426,7.233,124.6,124.53,12.83099433]
[1769538039623,20.36467235,124.6,124.53,12.83099433]
[1769538039930,13.13167235,124.6,124.53,20.06759433]
[1769538041430,13.13167235,124.64,124.55,12.83099433]
[1769538042934,20.36307235,124.63,124.55,20.06659433]
[1769538043130,13.13167235,124.62,124.55,20.06659433]
[1769538044622,13.13167235,124.64,124.57,12.83099433]
[1769538045036,13.13167235,124.64,124.58,12.83099433]
[1769538045224,7.2304,124.65,124.58,12.83099433]
[1769538045627,20.36207235,124.65,124.58,12.83099433]
[1769538046335,20.36237235,124.64,124.58,12.83099433]
[1769538048329,13.13167235,124.64,124.58,20.06489433]
[1769538048732,13.13167235,124.64,124.58,12.83099433]
[1769538050027,13.13167235,124.66,124.59,7.2332]
[1769538050333,13.13167235,124.66,124.6,12.83099433]
[1769538050833,20.36107235,124.66,124.6,12.83099433]
[1769538051334,20.36107235,124.66,124.56,116.84124632]
[1769538051335,13.13167235,124.66,124.57,12.83099433]
[1769538051725,13.13167235,124.64,124.56,11.53434632]
[1769538051923,13.13167235,124.64,124.56,17.13074065]
[1769538052323,13.13167235,124.64,124.57,12.83099433]
[1769538053020,13.13167235,124.64,124.57,20.06549433]
[1769538053224,13.13167235,124.64,124.57,12.83099433]
[1769538055035,13.13167235,124.64,124.58,7.234]
[1769538055533,13.13167235,124.64,124.58,20.22994083]
[1769538057632,20.36227235,124.64,124.6,1.6848498]
[1769538060243,13.13167235,124.64,124.6,1.6848498]
[1769538060636,13.13167235,124.64,124.58,1.6848498]
[1769538060947,19.28459809,124.62,124.58,1.6848498]
[1769538061236,12.05289809,124.61,124.56,1.6848498]
[1769538061832,12.05289809,124.63,124.58,1.6848498]
[1769538063026,19.28399809,124.63,124.58,1.6848498]
[1769538063434,12.05289809,124.63,124.58,1.6848498]
[1769538064644,12.05289809,124.62,124.58,1.6848498]
[1769538064831,12.05289809,124.62,124.56,8.9199498]
[1769538065840,12.05289809,124.61,124.56,1.6848498]
[1769538066438,13.73774789,124.61,124.54,14.68079063]
[1769538066743,13.73774789,124.59,124.53,7.2364]
[1769538067646,13.73774789,124.57,124.51,7.2376]
[1769538067844,13.73774789,124.57,124.5,12.99594083]
[1769538068137,12.05289809,124.57,124.51,7.238]
[1769538071335,20.97234789,124.57,124.5,12.99594083]
[1769538071538,13.73774789,124.56,124.5,12.99594083]
[1769538072332,20.97314789,124.56,124.5,12.99594083]
[1769538072532,1.6848498,124.54,124.49,7.2387]
[1769538072737,13.73774789,124.54,124.46,14.68079063]
[1769538072939,13.73774789,124.54,124.47,12.99594083]
[1769538073135,12.05289809,124.54,124.47,12.99594083]
[1769538073336,13.73774789,124.54,124.47,14.68079063]
[1769538073941,13.73774789,124.54,124.48,7.2398]
[1769538074557,12.05289809,124.54,124.48,8.9246498]
[1769538074740,12.05289809,124.54,124.48,7.2398]
[1769538075746,12.05289809,124.54,124.48,8.9246498]
[1769538076648,12.05289809,124.53,124.47,14.68079063]
[1769538077645,12.05289809,124.53,124.47,14.68402032]
[1769538077950,19.28989809,124.53,124.47,20.23624083]
[1769538078339,12.05289809,124.53,124.47,20.23624083]
[1769538078547,12.05289809,124.53,124.47,21.92432032]
[1769538078749,12.05289809,124.53,124.48,1.68807949]
[1769538079247,12.05289809,124.53,124.47,21.92432032]
[1769538080953,13.74097758,124.52,124.45,21.92512032]
[1769538081154,13.74097758,124.52,124.45,20.23704083]
[1769538081646,12.05289809,124.5,124.44,276.38]
[1769538081852,13.74097758,124.49,124.43,12.99594083]
[1769538082249,12.05289809,124.49,124.43,12.99594083]
[1769538082640,19.29219809,124.49,124.43,12.99594083]
[1769538082840,12.05289809,124.49,124.43,12.99594083]
[1769538083552,13.74097758,124.49,124.43,12.99594083]
[1769538084043,7.2398,124.48,124.43,12.99594083]
[1769538084244,13.74097758,124.49,124.43,20.23854083]
[1769538084452,12.05289809,124.49,124.43,20.23854083]
[1769538085652,19.29209809,124.49,124.43,20.23854083]
[1769538086249,12.05289809,124.49,124.43,20.23854083]
[1769538086650,12.05289809,124.49,124.43,21.92662032]
[1769538087153,12.05289809,124.49,124.43,20.23854083]
[1769538088252,12.05289809,124.49,124.43,14.68402032]
[1769538088454,19.29229809,124.49,124.43,12.99594083]
[1769538088958,19.29229809,124.49,124.43,20.23864083]
[1769538089156,7.2405,124.47,124.41,13.80625292]
[1769538090060,7.2405,124.47,124.41,19.36157343]
[1769538090258,11.79480063,124.45,124.38,12.11817343]
[1769538090655,11.79480063,124.45,124.39,13.80625292]
[1769538091156,11.79480063,124.45,124.4,1.68807949]
[1769538091358,11.79480063,124.47,124.41,1.68807949]
[1769538092155,19.03520063,124.47,124.41,21.05005292]
[1769538092355,13.48288012,124.5,124.41,13.80625292]
[1769538092558,13.48288012,124.5,124.43,1.68807949]
[1769538093563,11.79480063,124.5,124.43,1.68807949]
[1769538093852,13.48288012,124.5,124.43,1.68807949]
[1769538094059,19.03410063,124.49,124.43,1.68807949]
[1769538094560,19.03470063,124.48,124.42,7.2432]
[1769538094962,19.03470063,124.48,124.41,13.80625292]
[1769538096062,19.03470063,124.48,124.41,21.04995292]
[1769538096562,19.03470063,124.48,124.42,7.2433]
[1769538098750,19.03470063,124.48,124.42,8.93137949]
[1769538099559,11.79480063,124.48,124.42,8.93137949]
[1769538101767,19.03480063,124.48,124.42,8.93137949]
[1769538103465,20.72178012,124.5,124.43,19.36067343]
[1769538103665,11.79480063,124.49,124.44,1.68807949]
[1769538103866,11.79480063,124.49,124.42,1.68807949]
[1769538104166,112.5996,124.51,124.4,13.80625292]
[1769538104167,11.79480063,124.47,124.4,13.80625292]
[1769538104366,11.79480063,124.47,124.41,1.68807949]
[1769538104966,11.79480063,124.47,124.41,8.93137949]
[1769538105165,11.79480063,124.47,124.41,1.68807949]
[1769538106871,11.79480063,124.47,124.42,7.2431]
[1769538107371,11.79480063,124.47,124.42,8.93117949]
[1769538108570,11.79480063,124.47,124.41,21.05005292]
[1769538109374,11.79480063,124.47,124.42,7.243]
[1769538110468,20.72218012,124.49,124.43,21.04895292]
[1769538116784,11.40599685,124.48,124.43,21.04895292]
[1769538117987,11.40599685,124.48,124.44,7.2421]
[1769538120886,11.40599685,124.48,124.43,19.36077343]
[1769538121280,11.40599685,124.48,124.41,11.41094628]
[1769538121579,1.68807949,124.49,124.41,13.09902577]
[1769538121786,13.09407634,124.47,124.41,13.09902577]
[1769538122182,11.40599685,124.47,124.41,13.09902577]
[1769538122576,11.40599685,124.47,124.42,18.65404628]
[1769538123686,18.64639685,124.47,124.42,11.41094628]
[1769538124081,18.64639685,124.47,124.41,8.93187949]
[1769538124284,18.64699685,124.46,124.41,1.68807949]
[1769538124484,11.40599685,124.46,124.41,13.09902577]
[1769538124782,11.40599685,124.48,124.41,13.09902577]
[1769538124990,18.64579685,124.48,124.42,7.2433]
[1769538125181,11.40599685,124.48,124.42,11.41094628]
[1769538125382,13.09407634,124.5,124.42,11.41094628]
[1769538125783,13.09407634,124.5,124.44,7.242]
[1769538126588,20.33327634,124.5,124.44,7.242]
[1769538128997,7.2381,124.51,124.46,11.41094628]
[1769538129588,18.64409685,124.51,124.46,11.41094628]
[1769538130090,18.64409685,124.51,124.43,20.34122577]
[1769538130091,11.40599685,124.49,124.43,20.34122577]
[1769538132401,11.40599685,124.48,124.43,13.09902577]
[1769538132597,11.40599685,124.48,124.42,7.2432]
[1769538132799,11.40599685,124.48,124.42,18.65414628]
[1769538133297,18.64589685,124.48,124.42,18.65414628]
[1769538134302,18.64589685,124.48,124.43,11.41094628]
[1769538141908,18.64509685,124.5,124.45,11.41094628]
[1769538142203,18.64509685,124.5,124.44,8.93145502]
[1769538142405,11.40599685,124.49,124.44,8.93145502]
[1769538144709,11.40599685,124.49,124.44,20.49006459]
[1769538148610,11.46113751,124.52,124.44,13.24796459]
[1769538148819,11.46113751,124.54,124.49,11.55860957]
[1769538149312,13.15049253,124.56,124.49,11.55860957]
[1769538149913,11.46113751,124.54,124.48,1.68935502]
[1769538150214,11.46113751,124.54,124.48,13.24796459]
[1769538150906,11.46113751,124.54,124.49,1.68935502]
[1769538151506,13.15049253,124.56,124.49,13.24796459]
[1769538151910,11.46113751,124.55,124.49,20.48716459]
[1769538154007,11.46113751,124.54,124.49,11.55860957]
[1769538158219,11.46113751,124.56,124.49,20.48696459]
[1769538158815,11.46113751,124.55,124.49,20.48696459]
[1769538162223,11.46113751,124.55,124.5,11.55860957]
[1769538162410,8.92475502,124.56,124.5,11.55860957]
[1769538162615,18.69653751,124.56,124.5,18.79720957]
[1769538164724,18.69653751,124.56,124.5,20.48656459]
[1769538165826,18.69653751,124.56,124.5,18.79720957]
[1769538167322,20.38589253,124.56,124.5,18.79720957]
[1769538168930,13.15049253,124.54,124.48,7.2393]
[1769538169117,11.46113751,124.52,124.46,11.55860957]
[1769538170929,11.46113751,124.52,124.47,7.2403]
[1769538171431,11.46113751,124.52,124.47,18.79890957]
[1769538171627,11.46113751,124.54,124.48,18.79820957]
[1769538171852,11.46113751,124.56,124.49,13.24796459]
[1769538172623,11.46113751,124.55,124.49,18.79780957]
[1769538173520,13.15049253,124.55,124.49,18.79780957]
[1769538173932,20.38629253,124.55,124.49,18.79780957]
[1769538175330,11.46113751,124.55,124.5,7.2386]
[1769538176137,10.02303063,124.54,124.49,7.2392]
[1769538179142,10.02303063,124.53,124.48,16.95912487]
[1769538179341,10.02303063,124.53,124.46,11.40877989]
[1769538180028,11.71238565,124.53,124.46,11.40877989]
[1769538180232,18.94948565,124.53,124.47,7.2399]
[1769538180431,11.71238565,124.53,124.46,11.40877989]
[1769538180836,10.02303063,124.53,124.48,18.64847989]
[1769538182142,11.71238565,124.53,124.46,16.95992487]
[1769538182342,11.71238565,124.53,124.46,9.71942487]
[1769538182638,10.02303063,124.53,124.46,11.40877989]
[1769538182832,10.02303063,124.51,124.44,11.40877989]
[1769538183039,10.02303063,124.49,124.44,9.71942487]
[1769538184043,10.02303063,124.49,124.44,16.96142487]
[1769538185141,18.95048565,124.51,124.45,16.96072487]
[1769538185341,10.02303063,124.5,124.45,16.96072487]
[1769538185541,8.92745502,124.51,124.45,18.65007989]
[1769538185542,7.2381,124.51,124.45,18.65007989]
[1769538186247,17.26113063,124.51,124.45,18.65007989]
[1769538186647,17.26113063,124.51,124.45,16.96072487]
[1769538187047,10.02303063,124.51,124.45,16.96072487]
[1769538187648,10.02303063,124.51,124.45,9.71942487]
[1769538189249,17.26223063,124.5,124.45,9.71942487]
[1769538189649,10.02303063,124.49,124.43,9.71942487]
[1769538189843,11.71238565,124.49,124.43,9.71942487]
[1769538190042,10.02303063,124.49,124.43,9.71942487]
[1769538190243,10.02303063,124.49,124.43,11.40877989]
[1769538191647,10.02303063,124.48,124.43,9.71942487]
[1769538191840,10.02303063,124.48,124.41,11.40877989]
[1769538192045,11.71238565,124.48,124.41,9.71942487]
[1769538192952,7.2407,124.47,124.41,11.40877989]
[1769538193952,7.2407,124.47,124.41,18.65257989]
[1769538194153,10.02303063,124.48,124.42,11.40877989]
[1769538194752,10.02303063,124.48,124.42,9.71942487]
[1769538195957,17.26283063,124.48,124.42,16.96262487]
[1769538197959,17.26343063,124.47,124.4,297.45267989]
[1769538198158,17.26343063,124.47,124.41,9.71942487]
[1769538198361,17.26343063,124.47,124.41,11.40877989]
[1769538199664,17.26343063,124.47,124.41,11.4091287]
[1769538199867,17.26343063,124.47,124.41,18.6527287]
[1769538201264,17.26343063,124.47,124.42,1.68970383]
[1769538201468,17.26343063,124.47,124.41,18.6527287]
[1769538204273,10.02303063,124.47,124.42,9.25287058]
[1769538204469,10.02303063,124.47,124.42,10.94257441]
[1769538204772,16.10876993,124.49,124.43,9.25287058]
[1769538204972,8.86946993,124.49,124.43,10.94257441]
[1769538205361,8.86946993,124.51,124.45,10.94257441]
[1769538205668,8.86946993,124.55,124.48,10.94257441]
[1769538205861,8.86946993,124.55,124.5,1.68970383]
[1769538208472,16.10446993,124.57,124.5,10.94257441]
[1769538209975,8.86946993,124.56,124.5,18.18117441]
[1769538210775,16.10466993,124.56,124.5,18.18117441]
[1769538211167,8.86946993,124.55,124.5,1.68970383]
[1769538211369,8.86946993,124.55,124.48,16.49227058]
[1769538211370,8.86946993,124.53,124.48,1.68970383]
[1769538211771,8.86946993,124.53,124.47,1.68970383]
[1769538212263,8.86946993,124.52,124.47,1.68970383]
[1769538213075,8.86946993,124.51,124.46,10.94257441]
[1769538215177,8.86946993,124.53,124.46,10.94257441]
[1769538215481,8.86946993,124.53,124.48,1.68970383]
[1769538215984,8.86946993,124.53,124.49,1.68970383]
[1769538217774,16.10536993,124.55,124.5,1.68970383]
[1769538218374,8.86946993,124.55,124.51,1.68970383]
[1769538220880,16.10456993,124.57,124.51,1.68970383]
[1769538221580,8.86946993,124.55,124.49,8.92890383]
[1769538222183,8.86946993,124.55,124.5,1.68970383]
[1769538222785,8.86946993,124.53,124.48,1.68970383]
[1769538223574,8.86946993,124.53,124.47,8.92950383]
[1769538223980,16.10646993,124.53,124.47,8.92950383]
[1769538224377,10.55917376,124.52,124.44,10.94257441]
[1769538224582,10.55917376,124.52,124.45,10.94257441]
[1769538224785,8.86946993,124.52,124.46,1.68970383]
[1769538225177,8.86946993,124.5,124.44,1.68970383]
[1769538225382,8.86946993,124.5,124.43,18.18467441]